fUSD/lending_fUSD_20240514
["ID","MTS","AMOUNT","RATE_DAILY","PERIOD"]
[327036065,1715728236960,-1500.93,0.00012876,2]
[327036066,1715728236970,-666.2,0.00012876,2]
[327036067,1715728236979,-666.2,0.00012876,2]
[327036068,1715728236990,-500.0,0.00012876,2]
[327036069,1715728236999,-258.11,0.00012876,2]
[327036070,1715728237009,-500.0,0.00012876,2]
[327036071,1715728237019,-9234.67,0.00012876,2]
[327036072,1715728237029,-9234.67,0.00012876,2]
[327036073,1715728237039,-2553.72,0.00012876,2]
[327036074,1715728237048,-2553.72,0.00012876,2]
[327036075,1715728237059,-500.0,0.00012876,2]
[327036076,1715728237069,-2553.72,0.00012876,2]
[327036077,1715728237079,-500.0,0.00012876,2]
[327036078,1715728237089,-3656.07,0.00012876,2]
[327036079,1715728237098,-1558.9,0.00012876,2]
[327036080,1715728237108,-1558.9,0.00012876,2]
[327036081,1715728237117,-1558.9,0.00012876,2]
[327036082,1715728237126,-1063.78,0.00012876,2]
[327036083,1715728237136,-1063.78,0.00012876,2]
[327036084,1715728237145,-500.0,0.00012876,2]
[327036085,1715728237154,-1063.78,0.00012876,2]
[327036086,1715728237163,-500.0,0.00012876,2]
[327036087,1715728237172,-2555.93,0.00012876,2]
[327036088,1715728237182,-2555.93,0.00012876,2]
[327036089,1715728237191,-2555.93,0.00012876,2]
[327036090,1715728237200,-3285.93,0.00012876,2]
[327036091,1715728237209,-10731.86,0.00012876,2]
[327036092,1715728237218,-10731.86,0.00012876,2]
[327036093,1715728237228,-500.0,0.00012876,2]
[327036094,1715728237237,-500.0,0.00012876,2]
[327036095,1715728237247,-500.0,0.00012876,2]
[327036096,1715728237256,-500.0,0.00012876,2]
[327036097,1715728237266,-500.0,0.00012876,2]
[327036098,1715728237275,-655.28,0.00012876,2]
[327036099,1715728237285,-500.0,0.00012876,2]
[327036100,1715728237294,-655.28,0.00012876,2]
[327036101,1715728237304,-500.0,0.00012876,2]
[327036102,1715728237313,-655.28,0.00012876,2]
[327036103,1715728237322,-500.0,0.00012876,2]
[327036104,1715728237331,-208.5,0.00012876,2]
[327036105,1715728237341,-2566.13,0.00012876,2]
[327036106,1715728237351,-2926.71,0.00012876,2]
[327036107,1715728237360,-2926.71,0.00012876,2]
[327036108,1715728237369,-2926.71,0.00012876,2]
[327036109,1715728237574,-719.08,0.00012876,2]
[327036110,1715728237584,-719.08,0.00012876,2]
[327036111,1715728237594,-719.08,0.00012876,2]
[327036112,1715728237604,-2527.38,0.00012876,2]
[327036113,1715728237613,-2527.38,0.00012876,2]
[327036114,1715728237623,-500.0,0.00012876,2]
[327036115,1715728237633,-500.0,0.00012876,2]
[327036116,1715728237642,-500.0,0.00012876,2]
[327036117,1715728237652,-500.0,0.00012876,2]
[327036118,1715728237664,-294.07,0.00012876,2]
[327036119,1715728237678,-632.23,0.00012876,2]
[327036120,1715728237687,-500.0,0.00012876,2]
[327036121,1715728237697,-500.0,0.00012876,2]
[327036122,1715728237707,-1168.38,0.00012876,2]
[327036123,1715728237719,-500.0,0.00012876,2]
[327036124,1715728237728,-1658.96,0.00012876,2]
[327036125,1715728237738,-1658.96,0.00012876,2]
[327036126,1715728237750,-1658.96,0.00012876,2]
[327036127,1715728237759,-188.79,0.00012876,2]
[327036128,1715728237769,-728.21,0.00012876,2]
[327036129,1715728237779,-728.21,0.00012876,2]
[327036130,1715728237788,-336.48,0.00012876,2]
[327036131,1715728237798,-500.0,0.00012876,2]
[327036132,1715728237808,-500.0,0.00012876,2]
[327036133,1715728237818,-614.47,0.00012876,2]
[327036134,1715728237827,-322.71,0.00012876,2]
[327036135,1715728237837,-500.0,0.00012876,2]
[327036136,1715728237847,-500.0,0.00012876,2]
[327036137,1715728237856,-839.15,0.00012876,2]
[327036138,1715728237866,-839.15,0.00012876,2]
[327036139,1715728237875,-2438.23,0.00012876,2]
[327036140,1715728237884,-839.15,0.00012876,2]
[327036141,1715728237893,-3322.07,0.00012876,2]
[327036142,1715728237903,-3322.07,0.00012876,2]
[327036143,1715728237913,-360.31,0.00012876,2]
[327036144,1715728237922,-3322.07,0.00012876,2]
[327036145,1715728237932,-200.0,0.00012895,2]
[327036146,1715728237942,-206.82894028,0.00012895,2]
[327036147,1715728237951,-200.0,0.00012896,2]
[327036148,1715728237963,-1000.0,0.00012896,2]
[327036149,1715728237973,-1000.0,0.00012925,2]
[327036150,1715728237983,-691.42,0.00012944,2]
[327036151,1715728237993,-500.0,0.00012944,2]
[327036152,1715728238003,-500.0,0.00012944,2]
[327036153,1715728238013,-589.1,0.00012944,2]
[327036154,1715728238022,-790.38,0.00012944,2]
[327036155,1715728238031,-500.0,0.00012944,2]
[327036156,1715728238041,-500.0,0.00012944,2]
[327036157,1715728238050,-500.0,0.00012944,2]
[327036158,1715728238060,-500.0,0.00012944,2]
[327036159,1715728238069,-557.03,0.00012944,2]
[327036160,1715728238079,-168.87,0.00012944,2]
[327036161,1715728238089,-469.29,0.00012944,2]
[327036162,1715728238100,-602.07,0.00012944,2]
[327036163,1715728238111,-500.0,0.00012944,2]
[327036164,1715728238123,-349.96,0.00012944,2]
[327036165,1715728238133,-315.44846918,0.00012944,2]
[327036166,1715728238143,-1226.43,0.00012944,2]
[327036167,1715728238153,-500.0,0.00012944,2]
[327036168,1715728238162,-500.0,0.00012944,2]
[327036169,1715728238172,-500.0,0.00012944,2]
[327036170,1715728238182,-532.74,0.00012944,2]
[327036171,1715728238191,-656.52,0.00012944,2]
[327036172,1715728238202,-500.0,0.00012944,2]
[327036173,1715728238211,-475.64,0.00012944,2]
[327036174,1715728238222,-500.0,0.00012944,2]
[327036175,1715728238232,-552.28,0.00012944,2]
[327036176,1715728238243,-6122.11,0.00012944,2]
[327036177,1715728238253,-200.8,0.00012944,2]
[327036178,1715728238262,-1703.94,0.00012944,2]
[327036179,1715728238271,-978.63,0.00012944,2]
[327036180,1715728238280,-562.77,0.00012944,2]
[327036181,1715728238290,-500.0,0.00012944,2]
[327036182,1715728238299,-1457.66,0.00012944,2]
[327036183,1715728238309,-500.0,0.00012944,2]
[327036184,1715728238318,-226.73,0.00012944,2]
[327036185,1715728238327,-500.0,0.00012944,2]
[327036186,1715728238336,-500.0,0.00012944,2]
[327036187,1715728238346,-500.0,0.00012944,2]
[327036188,1715728238356,-1517.21,0.00012944,2]
[327036189,1715728238365,-500.0,0.00012944,2]
[327036190,1715728238375,-500.0,0.00012944,2]
[327036191,1715728238384,-1358.81,0.00012944,2]
[327036192,1715728238395,-500.0,0.00012944,2]
[327036193,1715728238406,-1123.54,0.00012944,2]
[327036194,1715728238416,-500.0,0.00012944,2]
[327036195,1715728238426,-2990.62,0.00012944,2]
[327036196,1715728238436,-500.0,0.00012944,2]
[327036197,1715728238446,-1031.71,0.00012944,2]
[327036198,1715728238455,-1821.73,0.00012944,2]
[327036199,1715728238466,-209.48,0.00012944,2]
[327036200,1715728238476,-4644.39,0.00012944,2]
[327036201,1715728238486,-1017.04,0.00012944,2]
[327036203,1715728238495,-1341.54,0.00012944,2]
[327036206,1715728238505,-2322.2,0.00012944,2]
[327036208,1715728238514,-500.0,0.00012944,2]
[327036210,1715728238523,-158.63,0.00012944,2]
[327036212,1715728238532,-4260.11,0.00012944,2]
[327036215,1715728238541,-500.0,0.00012944,2]
[327036217,1715728238550,-666.2,0.00012944,2]
[327036218,1715728238560,-9234.67,0.00012944,2]
[327036220,1715728238569,-500.0,0.00012944,2]
[327036222,1715728238578,-500.0,0.00012944,2]
[327036224,1715728238588,-10731.86,0.00012944,2]
[327036226,1715728238597,-368.31,0.00012944,2]
[327036228,1715728238606,-500.0,0.00012944,2]
[327036230,1715728238615,-2527.38,0.00012944,2]
[327036232,1715728238624,-405.36,0.00012944,2]
[327036233,1715728238633,-728.21,0.00012944,2]
[327036234,1715728238642,-500.0,0.00012944,2]
[327036235,1715728238651,-500.0,0.00012944,2]
[327036236,1715728238660,-165.0,0.00012945,2]
[327036237,1715728238670,-561.3789866,0.00012945,2]
[327036238,1715728238681,-155.0,0.00012946,2]
[327036239,1715728238691,-2397.21015954,0.00012946,2]
[327036240,1715728238700,-1000.0,0.00012946,2]
[327036241,1715728238710,-206.344491,0.00012946,2]
[327036242,1715728238719,-3077.0200038,0.00012946,2]
[327036243,1715728238729,-3779.94856419,0.00012946,2]
[327036244,1715728238738,-373.97275012,0.00012946,2]
[327036245,1715728238747,-1212.7569798,0.00012946,2]
[327036246,1715728238759,-500.0,0.00012946,2]
[327036247,1715728238769,-500.0,0.00012946,2]
[327036248,1715728238778,-500.0,0.00012946,2]
[327036249,1715728238787,-500.0,0.00012946,2]
[327036250,1715728238796,-500.0,0.00012946,2]
[327036251,1715728238807,-500.0,0.00012946,2]
[327036252,1715728238819,-374.95,0.00012946,2]
[327036253,1715728238829,-576.03,0.00012946,2]
[327036254,1715728238838,-602.07,0.00012946,2]
[327036256,1715728238848,-500.0,0.00012946,2]
[327036258,1715728238858,-1226.43,0.00012946,2]
[327036260,1715728238868,-500.0,0.00012946,2]
[327036262,1715728238877,-500.0,0.00012946,2]
[327036263,1715728238887,-532.74,0.00012946,2]
[327036265,1715728238896,-656.52,0.00012946,2]
[327036267,1715728238906,-500.0,0.00012946,2]
[327036269,1715728238916,-13328.63,0.00012946,2]
[327036270,1715728238925,-1029.34,0.00012946,2]
[327036271,1715728238937,-3511.5,0.00012946,2]
[327036272,1715728238947,-5474.96,0.00012946,2]
[327036273,1715728238957,-500.0,0.00012946,2]
[327036274,1715728238967,-552.28,0.00012946,2]
[327036275,1715728238977,-500.0,0.00012946,2]
[327036276,1715728238988,-958.28,0.00012946,2]
[327036277,1715728238998,-6122.11,0.00012946,2]
[327036278,1715728239008,-1703.94,0.00012946,2]
[327036279,1715728239017,-500.0,0.00012946,2]
[327036280,1715728239027,-500.0,0.00012946,2]
[327036281,1715728239037,-500.0,0.00012946,2]
[327036282,1715728239046,-978.63,0.00012946,2]
[327036283,1715728239058,-500.0,0.00012946,2]
[327036284,1715728239068,-511.56,0.00012946,2]
[327036285,1715728239078,-941.51,0.00012946,2]
[327036286,1715728239087,-500.0,0.00012946,2]
[327036287,1715728239097,-26963.49,0.00012946,2]
[327036288,1715728239107,-500.0,0.00012946,2]
[327036289,1715728239117,-500.0,0.00012946,2]
[327036290,1715728239127,-1457.66,0.00012946,2]
[327036291,1715728239136,-500.0,0.00012946,2]
[327036292,1715728239145,-500.0,0.00012946,2]
[327036293,1715728239155,-3146.55,0.00012946,2]
[327036294,1715728239165,-500.0,0.00012946,2]
[327036295,1715728239174,-500.0,0.00012946,2]
[327036296,1715728239185,-500.0,0.00012946,2]
[327036297,1715728239195,-500.0,0.00012946,2]
[327036299,1715728239206,-500.0,0.00012946,2]
[327036300,1715728239216,-500.0,0.00012946,2]
[327036302,1715728239226,-500.0,0.00012946,2]
[327036304,1715728239236,-500.0,0.00012946,2]
[327036305,1715728239246,-797.14,0.00012946,2]
[327036307,1715728239256,-1529.24,0.00012946,2]
[327036308,1715728239266,-1517.21,0.00012946,2]
[327036310,1715728239276,-500.0,0.00012946,2]
[327036312,1715728239285,-500.0,0.00012946,2]
[327036314,1715728239296,-745.43,0.00012946,2]
[327036315,1715728239305,-745.43,0.00012946,2]
[327036317,1715728239315,-500.0,0.00012946,2]
[327036319,1715728239325,-500.0,0.00012946,2]
[327036320,1715728239334,-500.0,0.00012946,2]
[327036322,1715728239343,-2028.14,0.00012946,2]
[327036323,1715728239353,-1358.81,0.00012946,2]
[327036325,1715728239363,-909.52,0.00012946,2]
[327036327,1715728239373,-500.0,0.00012946,2]
[327036329,1715728239383,-500.0,0.00012946,2]
[327036330,1715728239393,-500.0,0.00012946,2]
[327036332,1715728239405,-1228.63,0.00012946,2]
[327036334,1715728239415,-500.0,0.00012946,2]
[327036335,1715728239425,-500.0,0.00012946,2]
[327036337,1715728239440,-1123.54,0.00012946,2]
[327036340,1715728239455,-419.58348769,0.00012946,2]
[327036342,1715728239469,-500.0,0.00012946,2]
[327036344,1715728239484,-500.0,0.00012946,2]
[327036346,1715728239497,-500.0,0.00012946,2]
[327036347,1715728239509,-761.35,0.00012946,2]
[327036349,1715728239522,-2990.62,0.00012946,2]
[327036351,1715728239535,-500.0,0.00012946,2]
[327036353,1715728239548,-1031.71,0.00012946,2]
[327036355,1715728239566,-500.0,0.00012946,2]
[327036357,1715728239579,-492.19,0.00012946,2]
[327036359,1715728239594,-3179.12,0.00012946,2]
[327036361,1715728239608,-500.0,0.00012946,2]
[327036363,1715728239623,-500.0,0.00012946,2]
[327036365,1715728239637,-2707.21,0.00012946,2]
[327036367,1715728239651,-1821.73,0.00012946,2]
[327036369,1715728239667,-500.0,0.00012946,2]
[327036371,1715728239681,-500.0,0.00012946,2]
[327036373,1715728239694,-500.0,0.00012946,2]
[327036375,1715728239706,-4644.39,0.00012946,2]
[327036377,1715728239721,-425.99,0.00012946,2]
[327036379,1715728239733,-897.81,0.00012946,2]
[327036381,1715728239746,-1017.04,0.00012946,2]
[327036382,1715728239759,-1446.35,0.00012946,2]
[327036384,1715728239769,-500.0,0.00012946,2]
[327036386,1715728239780,-500.0,0.00012946,2]
[327036388,1715728239791,-1341.54,0.00012946,2]
[327036390,1715728239804,-1735.32,0.00012946,2]
[327036392,1715728239819,-260.22,0.00012946,2]
[327036393,1715728239831,-727.64,0.00012946,2]
[327036395,1715728239842,-500.0,0.00012946,2]
[327036397,1715728239856,-500.0,0.00012946,2]
[327036398,1715728239868,-4846.34,0.00012946,2]
[327036399,1715728239882,-2322.2,0.00012946,2]
[327036400,1715728239895,-1582.2,0.00012946,2]
[327036401,1715728239910,-607.92,0.00012946,2]
[327036402,1715728239923,-2221.34,0.00012946,2]
[327036403,1715728239934,-500.0,0.00012946,2]
[327036404,1715728239944,-500.0,0.00012946,2]
[327036405,1715728239955,-1122.72,0.00012946,2]
[327036406,1715728239967,-4260.11,0.00012946,2]
[327036407,1715728239979,-590.0,0.00012946,2]
[327036408,1715728239992,-1016.7,0.00012946,2]
[327036409,1715728240005,-3464.13,0.00012946,2]
[327036410,1715728240019,-1500.93,0.00012946,2]
[327036411,1715728240030,-1500.93,0.00012946,2]
[327036412,1715728240042,-666.2,0.00012946,2]
[327036413,1715728240054,-9234.67,0.00012946,2]
[327036414,1715728240067,-500.0,0.00012946,2]
[327036415,1715728240081,-2553.72,0.00012946,2]
[327036416,1715728240092,-500.0,0.00012946,2]
[327036417,1715728240104,-3656.07,0.00012946,2]
[327036419,1715728240115,-1558.9,0.00012946,2]
[327036421,1715728240127,-1558.9,0.00012946,2]
[327036422,1715728240138,-1063.78,0.00012946,2]
[327036423,1715728240149,-500.0,0.00012946,2]
[327036424,1715728240161,-2555.93,0.00012946,2]
[327036425,1715728240172,-3285.93,0.00012946,2]
[327036427,1715728240184,-10731.86,0.00012946,2]
[327036428,1715728240195,-500.0,0.00012946,2]
[327036429,1715728240207,-252.97,0.00012946,2]
[327036430,1715728240219,-655.28,0.00012946,2]
[327036431,1715728240230,-500.0,0.00012946,2]
[327036432,1715728240242,-2566.13,0.00012946,2]
[327036433,1715728240253,-2926.71,0.00012946,2]
[327036434,1715728240264,-719.08,0.00012946,2]
[327036435,1715728240275,-2527.38,0.00012946,2]
[327036436,1715728240287,-1168.38,0.00012946,2]
[327036437,1715728240298,-500.0,0.00012946,2]
[327036438,1715728240311,-500.0,0.00012946,2]
[327036439,1715728240321,-1658.96,0.00012946,2]
[327036440,1715728240333,-728.21,0.00012946,2]
[327036441,1715728240344,-500.0,0.00012946,2]
[327036442,1715728240355,-500.0,0.00012946,2]
[327036443,1715728240366,-2438.23,0.00012946,2]
[327036444,1715728240378,-839.15,0.00012946,2]
[327036445,1715728240389,-768.0,0.00012947,2]
[327036446,1715728240400,-377.52818815,0.00012947,2]
[327036447,1715728240411,-155.0,0.00012947,2]
[327036448,1715728240422,-159.03909377,0.00012947,2]
[327036449,1715728240434,-61617.96708641,0.00012947,2]
[327036450,1715728240459,-31420.96678108,0.00012947,2]
[327036451,1715728240472,-21584.95682334,0.00012947,2]
[327036452,1715728240487,-50044.26308057,0.00012947,2]
[327036453,1715728240501,-293.26397614,0.00012947,2]
[327036454,1715728240517,-650.23905597,0.00012947,2]
[327036455,1715728240531,-2040.41244433,0.00012947,2]
[327036456,1715728240544,-331.5,0.00012947,2]
[327036457,1715728240558,-2142.48428039,0.00012947,2]
[327036458,1715728240571,-813.06510203,0.00012947,2]
[327036459,1715728240584,-4830.43984845,0.00012947,2]
[327036460,1715728240598,-6018.32790803,0.00012947,2]
[327036461,1715728240613,-3064.60664569,0.00012947,2]
[327036462,1715728240626,-5902.51031461,0.00012947,2]
[327036463,1715728240640,-1000.0,0.00012947,2]
[327036464,1715728240654,-304.34121688,0.00012947,2]
[327036465,1715728240668,-854.70609405,0.00012947,2]
[327036466,1715728240686,-1229.285,0.00012947,2]
[327036467,1715728240699,-904.96532417,0.00012947,2]
[327036468,1715728240715,-357.46371413,0.00012947,2]
[327036469,1715728240730,-2400.0,0.00012947,2]
[327036470,1715728240743,-55310.11213868,0.00012947,2]
[327036471,1715728240758,-1579.36460864,0.00012947,2]
[327036472,1715728240769,-500.0,0.00012947,2]
[327036473,1715728240780,-500.0,0.00012947,2]
[327036474,1715728240791,-500.0,0.00012947,2]
[327036475,1715728240801,-500.0,0.00012947,2]
[327036476,1715728240814,-178.99,0.00012947,2]
[327036477,1715728240824,-500.0,0.00012947,2]
[327036478,1715728240835,-500.0,0.00012947,2]
[327036479,1715728240847,-490.1,0.00012947,2]
[327036480,1715728240859,-602.07,0.00012947,2]
[327036481,1715728240870,-267.86537745,0.00012947,2]
[327036482,1715728240881,-1226.43,0.00012947,2]
[327036484,1715728240892,-500.0,0.00012947,2]
[327036485,1715728240903,-500.0,0.00012947,2]
[327036486,1715728240914,-532.74,0.00012947,2]
[327036487,1715728240925,-656.52,0.00012947,2]
[327036488,1715728240937,-349.53007302,0.00012947,2]
[327036490,1715728240948,-193.33633065,0.00012947,2]
[327036493,1715728240962,-3649.70912852,0.00012947,2]
[327036494,1715728240975,-9485.58454083,0.00012947,2]
[327036495,1715728240986,-1029.34,0.00012947,2]
[327036496,1715728240997,-1010.65737239,0.00012947,2]
[327036497,1715728241011,-2373.05450546,0.00012947,2]
[327036498,1715728241025,-127.78812215,0.00012947,2]
[327036499,1715728241037,-1838.44063191,0.00012947,2]
[327036500,1715728241051,-3636.51936809,0.00012947,2]
[327036501,1715728241064,-490.23,0.00012947,2]
[327036502,1715728241074,-552.28,0.00012947,2]
[327036503,1715728241085,-552.28,0.00012947,2]
[327036504,1715728241096,-500.0,0.00012947,2]
[327036505,1715728241107,-958.28,0.00012947,2]
[327036506,1715728241118,-860.25218998,0.00012947,2]
[327036507,1715728241131,-1641.7,0.00012947,2]
[327036508,1715728241146,-419.67248778,0.00012947,2]
[327036509,1715728241158,-607.31474073,0.00012947,2]
[327036510,1715728241172,-2593.17058151,0.00012947,2]
[327036511,1715728241183,-958.28,0.00012947,2]
[327036512,1715728241194,-952.10617949,0.00012947,2]
[327036513,1715728241207,-5170.00382051,0.00012947,2]
[327036514,1715728241218,-1703.94,0.00012947,2]
[327036515,1715728241228,-1703.94,0.00012947,2]
[327036516,1715728241239,-500.0,0.00012947,2]
[327036517,1715728241250,-500.0,0.00012947,2]
[327036518,1715728241260,-500.0,0.00012947,2]
[327036519,1715728241271,-158.49,0.00012947,2]
[327036520,1715728241282,-227.6620954,0.00012947,2]
[327036521,1715728241295,-750.9679046,0.00012947,2]
[327036522,1715728241306,-978.63,0.00012947,2]
[327036523,1715728241317,-500.0,0.00012947,2]
[327036524,1715728241328,-941.51,0.00012947,2]
[327036525,1715728241339,-500.0,0.00012947,2]
[327036526,1715728241349,-1808.1600372,0.00012947,2]
[327036527,1715728241363,-334.09870292,0.00012947,2]
[327036528,1715728241376,-473.715444,0.00012947,2]
[327036529,1715728241879,-7343.13933792,0.00012947,2]
[327036530,1715728241929,-860.35582076,0.00012947,2]
[327036531,1715728241941,-2335.98145631,0.00012947,2]
[327036532,1715728241953,-1224.31720139,0.00012947,2]
[327036533,1715728241964,-1016.27333657,0.00012947,2]
[327036534,1715728241976,-854.16488114,0.00012947,2]
[327036535,1715728241987,-464.47486671,0.00012947,2]
[327036536,1715728241999,-1132.38722525,0.00012947,2]
[327036537,1715728242010,-2291.08562381,0.00012947,2]
[327036538,1715728242022,-6825.33606602,0.00012947,2]
[327036539,1715728242031,-500.0,0.00012947,2]
[327036540,1715728242042,-649.04,0.00012947,2]
[327036541,1715728242051,-1457.66,0.00012947,2]
[327036542,1715728242062,-1457.66,0.00012947,2]
[327036543,1715728242071,-500.0,0.00012947,2]
[327036544,1715728242081,-500.0,0.00012947,2]
[327036545,1715728242091,-500.0,0.00012947,2]
[327036546,1715728242102,-3146.55,0.00012947,2]
[327036547,1715728242112,-500.0,0.00012947,2]
[327036548,1715728242121,-500.0,0.00012947,2]
[327036549,1715728242131,-500.0,0.00012947,2]
[327036550,1715728242140,-500.0,0.00012947,2]
[327036551,1715728242150,-500.0,0.00012947,2]
[327036552,1715728242159,-500.0,0.00012947,2]
[327036553,1715728242170,-500.0,0.00012947,2]
[327036554,1715728242179,-500.0,0.00012947,2]
[327036555,1715728242188,-500.0,0.00012947,2]
[327036556,1715728242197,-500.0,0.00012947,2]
[327036557,1715728242206,-500.0,0.00012947,2]
[327036558,1715728242215,-500.0,0.00012947,2]
[327036559,1715728242224,-500.0,0.00012947,2]
[327036560,1715728242232,-500.0,0.00012947,2]
[327036561,1715728242241,-500.0,0.00012947,2]
[327036562,1715728242250,-797.14,0.00012947,2]
[327036563,1715728242259,-797.14,0.00012947,2]
[327036564,1715728242267,-1529.24,0.00012947,2]
[327036565,1715728242276,-1529.24,0.00012947,2]
[327036566,1715728242285,-1517.21,0.00012947,2]
[327036567,1715728242294,-1517.21,0.00012947,2]
[327036568,1715728242302,-500.0,0.00012947,2]
[327036569,1715728242312,-500.0,0.00012947,2]
[327036570,1715728242321,-500.0,0.00012947,2]
[327036571,1715728242330,-745.43,0.00012947,2]
[327036572,1715728242339,-500.0,0.00012947,2]
[327036573,1715728242348,-745.43,0.00012947,2]
[327036574,1715728242356,-500.0,0.00012947,2]
[327036575,1715728242365,-500.0,0.00012947,2]
[327036576,1715728242374,-500.0,0.00012947,2]
[327036577,1715728242383,-500.0,0.00012947,2]
[327036578,1715728242392,-2028.14,0.00012947,2]
[327036579,1715728242401,-2028.14,0.00012947,2]
[327036580,1715728242410,-1358.81,0.00012947,2]
[327036581,1715728242419,-1358.81,0.00012947,2]
[327036582,1715728242428,-909.52,0.00012947,2]
[327036583,1715728242439,-909.52,0.00012947,2]
[327036584,1715728242448,-320.0,0.00012947,2]
[327036585,1715728242458,-259.82,0.00012947,2]
[327036586,1715728242468,-1228.63,0.00012947,2]
[327036587,1715728242479,-1228.63,0.00012947,2]
[327036588,1715728242489,-500.0,0.00012947,2]
[327036589,1715728242500,-500.0,0.00012947,2]
[327036590,1715728242509,-500.0,0.00012947,2]
[327036591,1715728242519,-1123.54,0.00012947,2]
[327036592,1715728242529,-1123.54,0.00012947,2]
[327036593,1715728242538,-500.0,0.00012947,2]
[327036594,1715728242548,-500.0,0.00012947,2]
[327036595,1715728242559,-500.0,0.00012947,2]
[327036596,1715728242568,-761.35,0.00012947,2]
[327036597,1715728242578,-761.35,0.00012947,2]
[327036598,1715728242588,-2990.62,0.00012947,2]
[327036599,1715728242597,-500.0,0.00012947,2]
[327036600,1715728242607,-2990.62,0.00012947,2]
[327036601,1715728242617,-1031.71,0.00012947,2]
[327036602,1715728242628,-1031.71,0.00012947,2]
[327036603,1715728242636,-3179.12,0.00012947,2]
[327036604,1715728242646,-3179.12,0.00012947,2]
[327036605,1715728242655,-163.6,0.00012947,2]
[327036606,1715728242665,-2707.21,0.00012947,2]
[327036607,1715728242679,-2707.21,0.00012947,2]
[327036608,1715728242688,-1821.73,0.00012947,2]
[327036609,1715728242698,-1821.73,0.00012947,2]
[327036610,1715728242707,-500.0,0.00012947,2]
[327036611,1715728242717,-500.0,0.00012947,2]
[327036612,1715728242726,-4644.39,0.00012947,2]
[327036613,1715728242736,-4644.39,0.00012947,2]
[327036614,1715728242746,-897.81,0.00012947,2]
[327036615,1715728242757,-897.81,0.00012947,2]
[327036616,1715728242766,-1017.04,0.00012947,2]
[327036617,1715728242775,-1446.35,0.00012947,2]
[327036618,1715728242784,-500.0,0.00012947,2]
[327036619,1715728242793,-500.0,0.00012947,2]
[327036620,1715728242802,-1341.54,0.00012947,2]
[327036624,1715728242813,-1341.54,0.00012947,2]
[327036628,1715728242822,-1735.32,0.00012947,2]
[327036632,1715728242830,-1735.32,0.00012947,2]
[327036636,1715728242840,-727.64,0.00012947,2]
[327036639,1715728242849,-727.64,0.00012947,2]
[327036643,1715728242858,-322.78,0.00012947,2]
[327036647,1715728242867,-4846.34,0.00012947,2]
[327036651,1715728242877,-4846.34,0.00012947,2]
[327036655,1715728242886,-2322.2,0.00012947,2]
[327036658,1715728242895,-2322.2,0.00012947,2]
[327036660,1715728242904,-1582.2,0.00012947,2]
[327036662,1715728242914,-2221.34,0.00012947,2]
[327036664,1715728242923,-2221.34,0.00012947,2]
[327036666,1715728242932,-500.0,0.00012947,2]
[327036667,1715728242941,-500.0,0.00012947,2]
[327036669,1715728242950,-1122.72,0.00012947,2]
[327036670,1715728242959,-4260.11,0.00012947,2]
[327036671,1715728242968,-4260.11,0.00012947,2]
[327036672,1715728242977,-1016.7,0.00012947,2]